bitfinex-derivatives/quotes_BNBF0:USTF0_20250521
["timestamp","ask_amount","ask_price","bid_price","bid_amount"]
[1747786871488,2.24991412,651.36,650.53,1.34579488]
[1747786871689,2.24991412,651.36,650.54,0.58701493]
[1747786871891,2.24991412,651.36,650.55,1.34579488]
[1747786872091,2.24991412,651.36,650.56,0.58701493]
[1747786872292,2.24991412,651.36,650.57,1.34579488]
[1747786872490,2.24991412,651.36,650.58,0.58701493]
[1747786872692,2.24991412,651.36,650.59,0.58701493]
[1747786872891,2.24991412,651.36,650.6,1.34579488]
[1747786873092,2.24991412,651.36,650.61,0.58701493]
[1747786873294,2.24991412,651.36,650.62,1.34579488]
[1747786873595,2.24991412,651.36,650.63,1.34579488]
[1747786873890,2.24991412,651.36,650.64,0.58701493]
[1747786874095,2.24991412,651.36,650.65,0.58701493]
[1747786874294,2.24991412,651.36,650.66,0.58701493]
[1747786874496,0.97,651.35,650.65,1.182]
[1747786874795,0.97,651.35,650.66,0.58722715]
[1747786874996,0.97,651.35,650.65,1.182]
[1747786875195,0.97,651.35,650.66,0.58722939]
[1747786875393,0.97,651.35,650.65,1.182]
[1747786875589,0.97,651.35,650.66,0.58725801]
[1747786875793,0.97,651.35,650.65,1.182]
[1747786875990,0.97,651.35,650.66,0.58725766]
[1747786876195,0.97,651.35,650.65,1.182]
[1747786876395,0.97,651.35,650.66,0.58728576]
[1747786876596,0.97,651.35,650.65,1.182]
[1747786876795,0.97,651.35,650.66,0.58728774]
[1747786877095,0.97,651.35,650.65,1.182]
[1747786878199,0.97,651.35,650.66,0.58736004]
[1747786878397,0.97,651.35,650.65,1.182]
[1747786878597,0.97,651.35,650.66,0.58734807]
[1747786878796,0.97,651.35,650.65,1.182]
[1747786878993,0.97,651.35,650.66,0.58729579]
[1747786879191,0.97,651.35,650.65,1.182]
[1747786879396,0.97,651.35,650.66,0.58732483]
[1747786879596,0.97,651.35,650.65,1.182]
[1747786879797,0.97,651.35,650.66,0.58737731]
[1747786880094,0.97,651.35,650.67,0.58737731]
[1747786880299,0.97,651.35,650.65,1.182]
[1747786880498,0.97,651.35,650.66,0.58738305]
[1747786880698,0.97,651.35,650.65,1.182]
[1747786880898,0.97,651.35,650.66,0.58738258]
[1747786881097,0.97,651.35,650.65,1.182]
[1747786884299,2.24991412,651.26,650.65,1.182]
[1747786887200,0.97,651.35,650.65,1.182]
[1747786887201,2.24991412,651.18,650.65,1.182]
[1747786890507,2.24991412,651.2,650.65,1.182]
[1747786892410,2.24991412,651.2,650.2,0.24901003]
[1747786892710,2.24991412,651.2,650.21,1.34961461]
[1747786892910,2.24991412,651.2,650.22,0.58735718]
[1747786893105,2.24991412,651.2,650.23,1.34961461]
[1747786893304,2.24991412,651.2,650.24,0.58736522]
[1747786893503,2.24991412,651.2,650.25,0.58736522]
[1747786893704,2.24991412,651.2,650.26,1.34962265]
[1747786894008,2.24991412,651.2,650.27,0.58736522]
[1747786894208,2.24991412,651.2,650.28,1.34962265]
[1747786894407,2.24991412,651.2,650.29,1.34962265]
[1747786894711,2.24991412,651.2,650.3,0.58736522]
[1747786894910,2.24991412,651.2,650.31,1.34973659]
[1747786895110,2.24991412,651.2,650.32,0.58747916]
[1747786895312,2.24991412,651.2,650.33,0.58747916]
[1747786895513,2.24991412,651.2,650.34,0.58747916]
[1747786895713,2.24991412,651.2,650.35,0.58747916]
[1747786895913,2.24991412,651.2,650.36,0.58747916]
[1747786896108,2.24991412,651.2,650.31,1.275]
[1747786896312,2.24991412,651.2,650.32,0.58724546]
[1747786896515,2.24991412,651.2,650.33,0.58724546]
[1747786896814,2.24991412,651.1,650.34,1.35061801]
[1747786897015,2.24991412,651.1,650.35,0.58723895]
[1747786897316,2.24991412,651.1,650.36,0.58723895]
[1747786897517,2.24991412,651.1,650.37,0.58713161]
[1747786897710,2.24991412,651.1,650.31,1.275]
[1747786897914,2.24991412,651.1,650.32,0.58713161]
[1747786898216,2.24991412,651.1,650.33,1.34983667]
[1747786898414,2.24991412,651.1,650.34,0.58713161]
[1747786898611,2.24991412,651.1,650.35,0.58713161]
[1747786898815,2.24991412,651.1,650.36,0.58713161]
[1747786899011,2.24991412,651.1,650.31,1.275]
[1747786899216,2.24991412,651.1,650.32,1.34961207]
[1747786899413,2.24991412,651.11,650.33,0.58704199]
[1747786899616,2.24991412,651.11,650.34,0.58704199]
[1747786899815,2.24991412,651.11,650.35,0.58704199]
[1747786900014,2.24991412,651.11,650.36,0.58704199]
[1747786900217,2.24991412,651.11,650.37,0.58704199]
[1747786900413,2.24991412,651.11,650.38,0.58704199]
[1747786900617,2.24991412,651.11,650.31,1.275]
[1747786900816,2.24991412,651.11,650.32,0.58691037]
[1747786901017,2.24991412,651.11,650.33,0.58691037]
[1747786901217,2.24991412,651.11,650.34,0.58691037]
[1747786901418,2.24991412,651.11,650.35,0.58691037]
[1747786901614,2.24991412,651.11,650.31,1.275]
[1747786901819,2.24991412,651.11,650.32,0.58687603]
[1747786902018,2.24991412,651.08,650.33,0.58687603]
[1747786902219,2.24991412,651.08,650.31,1.275]
[1747786902420,2.24991412,651.08,650.32,0.58681662]
[1747786902620,2.24991412,651.08,650.31,1.275]
[1747786902820,2.24991412,651.08,650.32,0.58680537]
[1747786903023,2.24991412,651.08,650.31,1.275]
[1747786903318,2.24991412,651.08,650.32,0.58680671]
[1747786903515,2.24991412,651.08,650.31,1.275]
[1747786903719,2.24991412,651.08,650.32,0.58673537]
[1747786903919,2.24991412,651.08,650.31,1.275]
[1747786904117,2.24991412,651.09,650.32,0.58673537]
[1747786904322,2.24991412,651.09,650.31,1.275]
[1747786907632,2.24991412,650.99,650.31,1.275]
[1747786908934,0.981,651.24,650.31,1.275]
[1747786909533,0.2674701,651.23,650.31,1.275]
[1747786912732,2.28181691,651.0,650.31,1.275]
[1747786915335,1.041,650.99,650.31,1.275]
[1747786916242,0.26749991,650.98,650.31,1.275]
[1747786917442,1.041,650.99,650.31,1.275]
[1747786925144,0.26749991,650.98,650.31,1.275]
[1747786929849,1.041,650.99,650.31,1.275]
[1747786931152,0.26749991,650.98,650.31,1.275]
[1747786932849,1.041,650.99,650.31,1.275]
[1747786933857,0.2675287,650.98,650.31,1.275]
[1747786934157,2.28181691,650.85,650.31,1.275]
[1747786934456,2.28181691,650.85,649.64,0.25502332]
[1747786934755,2.28181691,650.85,649.65,1.34506628]
[1747786934957,2.28181691,650.85,649.66,0.58531555]
[1747786935153,2.28181691,650.85,649.67,1.34506628]
[1747786935354,2.28181691,650.85,649.68,0.58531555]
[1747786935551,2.28181691,650.85,649.69,0.58531555]
[1747786935759,2.28181691,650.85,649.7,1.34506628]
[1747786935953,2.28181691,650.85,649.71,0.58531555]
[1747786936152,2.28181691,650.85,649.72,1.34506628]
[1747786936356,2.28181691,650.85,649.73,0.58531555]
[1747786936555,2.28181691,650.85,649.74,0.58531555]
[1747786936755,2.28181691,650.85,649.75,1.34506628]
[1747786936955,2.28181691,650.85,649.76,0.58531555]
[1747786937153,2.28181691,650.85,649.77,0.58531555]
[1747786937355,2.28181691,650.85,649.78,1.34516383]
[1747786937555,2.28181691,650.85,649.79,0.5854131]
[1747786937756,2.28181691,650.87,649.8,1.34516383]
[1747786937954,2.28181691,650.87,649.81,0.5854131]
[1747786938153,2.28181691,650.87,649.82,0.5854131]
[1747786938458,2.28181691,650.87,649.83,1.34516383]
[1747786938657,2.28181691,650.87,649.84,0.5854131]
[1747786938861,1.041,650.99,649.85,0.5854131]
[1747786939057,1.041,650.99,649.86,0.89312286]
[1747786939258,1.041,650.99,649.87,0.5854131]
[1747786939458,1.041,650.99,649.88,1.34516383]
[1747786939664,1.041,650.99,649.89,0.5854131]
[1747786939959,1.041,650.99,649.88,0.75975073]
[1747786940162,0.2675791,650.98,649.89,1.34523206]
[1747786940361,2.27954512,650.9,649.89,0.75975073]
[1747786940560,2.27954512,650.9,649.9,0.75975073]
[1747786940861,2.27954512,650.9,649.91,0.58550602]
[1747786941160,2.27954512,650.9,649.92,1.34525675]
[1747786941361,2.27954512,650.9,649.93,0.58550602]
[1747786941562,2.27954512,650.9,649.94,0.58550602]
[1747786941762,2.27954512,650.9,649.95,0.58550602]
[1747786941962,2.27954512,650.9,649.96,0.58550602]
[1747786942162,2.27954512,650.9,649.97,1.34525675]
[1747786942364,2.27954512,650.9,649.98,0.58568819]
[1747786942663,2.27954512,650.9,649.99,0.58568819]
[1747786942957,2.27954512,650.9,650.0,0.58568819]
[1747786943161,2.27954512,650.9,649.95,0.30763795]
[1747786943162,2.27954512,650.9,650.01,1.34560688]
[1747786943362,0.26754824,650.95,650.01,0.75975073]
[1747786943662,0.26754824,650.95,650.0,0.30763795]
[1747786943857,0.26754824,650.95,650.01,0.58585672]
[1747786944062,0.26754824,650.95,650.02,0.75909941]
[1747786944457,0.26754824,650.95,650.03,1.34509492]
[1747786944762,0.26754824,650.95,650.04,0.89363346]
[1747786944963,1.067,650.95,650.05,0.58599551]
[1747786945157,1.067,650.95,650.06,0.58599551]
[1747786945361,1.067,650.95,650.04,0.30763795]
[1747786945557,1.067,650.95,650.05,0.58610452]
[1747786945864,1.067,650.95,650.06,1.34542765]
[1747786946163,1.067,650.95,650.07,0.58612817]
[1747786946362,1.067,650.95,650.06,0.75929948]
[1747786946662,1.067,650.95,650.07,0.58621614]
[1747786946863,1.067,650.95,650.08,1.34563903]
[1747786947070,1.067,650.95,650.09,0.58621614]
[1747786947264,1.067,650.95,650.1,0.58621614]
[1747786947464,1.067,650.95,650.11,0.58625205]
[1747786947665,1.067,650.95,650.12,1.34567494]
[1747786947866,1.067,650.95,650.13,0.58625205]
[1747786948060,1.067,650.95,650.14,1.34567494]
[1747786948263,1.067,650.95,650.15,1.34567494]
[1747786948461,1.067,650.95,650.16,0.58625205]
[1747786948760,1.067,650.95,650.17,1.34567494]
[1747786948964,1.067,650.95,650.18,0.58625205]
[1747786949162,1.067,650.95,650.12,0.30758819]
[1747786949468,1.067,650.95,650.13,0.58650666]
[1747786949667,1.067,650.95,650.14,0.58650666]
[1747786949867,1.067,650.95,650.15,0.58650666]
[1747786950067,1.067,650.95,650.16,1.34634005]
[1747786950268,1.067,650.95,650.17,0.58663251]
[1747786950469,1.067,650.95,650.14,0.30758819]
[1747786950663,1.067,650.95,650.15,0.58664739]
[1747786950864,1.067,650.95,650.16,0.58664739]
[1747786951065,1.067,650.95,650.14,0.30758819]
[1747786951469,1.067,650.95,649.81,0.25473833]
[1747786951768,1.067,650.95,649.82,1.34710939]
[1747786951969,1.067,650.95,649.83,1.34710939]
[1747786952170,0.26756984,650.94,649.84,1.34710939]
[1747786952368,0.26756984,650.94,649.85,0.5868379]
[1747786952565,0.26756984,650.94,649.86,1.34710939]
[1747786952871,0.26756984,650.94,649.87,1.34726401]
[1747786953071,0.26756984,650.94,649.88,0.58699252]
[1747786953270,1.067,650.95,649.89,1.34726401]
[1747786953570,1.067,650.95,649.9,1.34726401]
[1747786953865,1.067,650.95,649.91,0.58699252]
[1747786954069,1.067,650.95,649.92,0.58699252]
[1747786954271,1.067,650.95,649.93,0.58699252]
[1747786954569,1.067,650.95,649.94,1.34726401]
[1747786954773,1.067,650.95,649.95,0.58699252]
[1747786955072,1.067,650.95,649.96,1.34726401]
[1747786955263,1.067,650.95,649.97,0.58699252]
[1747786955468,1.067,650.95,649.98,0.58699252]
[1747786955668,1.067,650.95,649.99,0.58699252]
[1747786955867,1.067,650.95,650.0,0.58699252]
[1747786956065,1.067,650.95,650.01,0.58699252]
[1747786956270,1.067,650.95,650.02,0.58734542]
[1747786956573,2.27954512,650.94,650.03,0.58734542]
[1747786956768,2.27954512,650.94,650.04,0.58734542]
[1747786956967,2.27954512,650.94,650.05,0.58734542]
[1747786957169,2.27954512,650.94,650.06,0.58734542]
[1747786957370,2.27954512,650.94,650.07,1.34761691]
[1747786957573,2.27954512,650.94,650.08,0.58734542]
[1747786957775,2.27954512,650.94,650.09,0.58734542]
[1747786957971,2.27954512,650.94,650.1,0.58734542]
[1747786958168,2.27954512,650.94,650.11,1.34761691]
[1747786958373,2.27954512,650.94,650.12,0.58734542]
[1747786958574,2.27954512,650.94,650.13,1.34761691]
[1747786958773,2.27954512,650.94,650.14,0.58734542]
[1747786959073,2.27954512,650.94,650.15,1.34761691]
[1747786959274,2.27954512,650.94,650.16,0.58734542]
[1747786959573,3.08654512,650.94,650.17,0.58734542]
[1747786959772,2.27954512,650.92,650.18,1.34797086]
[1747786959968,2.27954512,650.92,650.19,0.58769937]
[1747786960168,2.27954512,650.92,650.2,0.76027149]
[1747786960675,2.27954512,650.92,650.17,0.30762359]
[1747786961074,2.27954512,650.92,649.93,0.25473833]
[1747786961269,2.27954512,650.92,649.94,0.58780967]
[1747786961472,2.27954512,650.92,649.95,0.58791189]
[1747786961673,2.27954512,650.92,649.96,0.58791189]
[1747786961870,2.27954512,650.92,649.97,1.34856667]
[1747786962072,2.27954512,650.92,649.98,0.58791189]
[1747786962274,2.27954512,650.92,649.99,0.58791189]
[1747786962470,0.807,650.94,650.0,0.58791189]
[1747786962675,0.807,650.94,650.01,0.58791189]
[1747786962975,0.807,650.94,650.02,1.34856667]
[1747786963176,0.807,650.94,650.03,0.58800862]
[1747786963375,0.807,650.94,650.04,0.58800862]
[1747786963575,0.807,650.94,650.05,1.3486634]
[1747786963874,0.807,650.94,650.06,1.3486634]
[1747786964070,0.807,650.94,650.07,0.58800862]
[1747786964274,0.807,650.94,650.08,0.58800862]
[1747786964473,0.807,650.94,650.09,1.3486634]
[1747786964670,0.807,650.94,650.1,0.58800862]
[1747786964974,0.807,650.94,650.11,0.5882098]
[1747786965175,0.807,650.94,650.12,0.5882098]
[1747786965476,0.807,650.94,650.13,0.5882098]
[1747786965776,0.807,650.94,650.14,0.5882098]
[1747786965972,0.807,650.94,650.15,1.34886458]
[1747786966176,0.807,650.94,650.16,0.5882098]
[1747786966376,0.807,650.94,650.15,0.76065478]
[1747786966377,0.807,650.94,650.17,0.5882098]
[1747786966577,0.807,650.94,650.18,1.06828346]
[1747786966777,0.807,650.94,650.19,0.58863347]
[1747786966977,0.807,650.94,650.2,0.58863347]
[1747786967177,0.807,650.94,650.21,1.34928825]
[1747786967377,0.807,650.94,650.22,0.58863347]
[1747786967578,0.807,650.94,650.23,0.58863347]
[1747786967776,0.807,650.94,650.24,0.58863347]
[1747786967975,0.807,650.94,650.25,0.58863347]
[1747786968173,0.807,650.94,650.26,0.58863347]
[1747786968377,0.807,650.94,650.23,0.76065478]
[1747786968577,2.27954512,650.87,650.24,0.58861089]
[1747786968774,2.27954512,650.87,650.25,0.58861089]
[1747786968976,2.27954512,650.87,650.26,0.58861089]
[1747786969173,2.27954512,650.87,650.27,0.58861089]
[1747786969373,2.27954512,650.87,650.27,1.114]
[1747786970580,2.27954512,650.88,650.27,1.114]
[1747786975085,0.807,650.94,650.27,1.114]
[1747786975086,2.27954512,650.83,650.27,1.114]
[1747786978385,2.27954512,650.86,650.27,1.114]
[1747786984085,2.27954512,650.91,650.27,1.114]
[1747786984489,2.27954512,650.91,650.28,0.5892174]
[1747786984689,2.27954512,650.91,650.29,0.5892174]
[1747786984892,2.27954512,650.91,650.3,1.34873166]
[1747786985085,2.27954512,650.91,650.31,0.5892174]
[1747786985388,2.27954512,650.91,650.32,1.34873166]
[1747786985593,2.27954512,650.91,650.33,0.5892174]
[1747786985792,2.27954512,650.91,650.34,1.34873166]
[1747786985991,2.27954512,650.91,650.35,0.5892174]
[1747786986187,2.27954512,650.91,650.36,0.5892174]
[1747786986387,2.27954512,651.05,650.37,0.5892174]
[1747786986689,2.27954512,651.05,650.38,0.5892174]
[1747786986888,2.27954512,651.05,650.39,0.58886732]
[1747786987086,2.27954512,651.05,650.39,0.75808901]
[1747786987491,2.27954512,651.05,650.4,1.227]
[1747786988892,0.786,651.04,650.4,1.227]
[1747787006807,2.27954512,650.86,650.4,1.227]
[1747787007103,2.27954512,650.86,650.05,0.25473833]
[1747787007402,2.27954512,650.86,650.06,1.34844453]
[1747787007603,2.27954512,650.86,650.07,0.58929543]
[1747787007802,2.27954512,650.86,650.08,0.89686732]
[1747787007999,2.27954512,650.86,650.09,0.58929543]
[1747787008204,2.27954512,650.86,650.1,0.58929543]
[1747787008400,2.27954512,650.86,650.11,1.34844453]
[1747787008605,2.27954512,650.86,650.12,0.58929543]
[1747787008806,2.27954512,650.86,650.13,1.34844453]
[1747787009006,2.27954512,650.86,650.14,0.58929543]
[1747787009206,2.27954512,650.86,650.15,0.58929543]
[1747787009406,2.27954512,650.86,650.16,1.3483762]
[1747787009608,2.27954512,650.85,650.17,0.5892271]
[1747787009803,2.27954512,650.85,650.18,0.5892271]
[1747787010003,2.27954512,650.85,650.19,1.3483762]
[1747787010207,2.27954512,650.85,650.2,1.3483762]
[1747787010403,2.27954512,650.85,650.21,0.5892271]
[1747787010707,2.27954512,650.85,650.22,1.3483762]
[1747787010909,2.27954512,650.85,650.23,0.5892271]
[1747787011104,2.27954512,650.85,650.24,0.58919751]
[1747787011311,2.27954512,650.85,650.25,0.58919751]
[1747787011510,2.27954512,650.85,650.26,0.58919751]
[1747787011705,2.27954512,650.85,650.24,1.06672099]
[1747787011706,2.27954512,650.85,650.27,1.34834661]
[1747787011903,2.27954512,650.85,650.28,0.58919751]
[1747787012108,2.27954512,650.85,650.29,0.58919751]
[1747787012309,2.27954512,650.85,650.3,0.58919751]
[1747787012607,2.27954512,650.85,650.31,1.34834661]
[1747787012808,2.27954512,651.07,650.32,0.58919751]
[1747787013011,2.27954512,651.07,650.33,1.34834661]
[1747787013207,2.27954512,651.07,650.34,0.58919751]
[1747787013410,2.27954512,651.07,650.35,1.34834661]
[1747787013609,2.27954512,651.07,650.36,0.58919751]
[1747787013810,2.27954512,651.07,650.37,0.58919751]
[1747787014008,2.27954512,651.07,650.38,1.34834661]
[1747787014210,2.27954512,651.07,650.39,1.34834661]
[1747787014408,2.27954512,651.07,650.4,0.58919751]
[1747787014711,2.27954512,651.07,650.41,0.58919751]
[1747787014908,3.06254512,651.07,650.42,0.58919751]
[1747787015110,3.06254512,651.07,650.43,1.34834661]
[1747787015308,3.06254512,651.07,650.44,0.58919751]
[1747787015507,3.06254512,651.07,650.45,1.34834661]
[1747787015714,0.783,651.07,650.46,1.34834661]
[1747787015909,0.783,651.07,650.47,0.58919751]
[1747787016111,0.783,651.07,650.48,0.58919751]
[1747787016308,0.783,651.07,650.49,1.34834661]
[1747787016508,0.783,651.07,650.5,0.58919751]
[1747787016712,0.783,651.07,650.51,0.8967694]
[1747787016914,0.783,651.07,650.52,0.58919751]
[1747787017116,0.783,651.07,650.53,0.58919751]
[1747787017311,0.783,651.07,650.51,0.30757189]
[1747787017516,0.783,651.07,650.52,0.58804951]
[1747787017716,0.783,651.07,650.53,0.58804951]
[1747787017916,0.783,651.07,650.51,0.30757189]
[1747787018117,0.783,651.07,650.52,0.58804006]
[1747787018314,0.783,651.07,650.53,0.58804006]
[1747787018518,0.783,651.07,650.23,0.25473833]
[1747787018713,0.783,651.07,650.24,1.34344187]
[1747787018915,0.783,651.07,650.25,0.58792587]
[1747787019115,0.783,651.07,650.26,1.34344187]
[1747787019312,0.783,651.07,650.27,0.58792587]
[1747787019619,0.783,651.07,650.28,1.34344187]
[1747787019914,0.783,651.07,650.29,0.58792587]
[1747787020119,0.783,651.07,650.3,0.58792587]
[1747787020316,0.783,651.07,650.31,1.34344187]
[1747787020516,0.783,651.07,650.32,1.34344187]
[1747787020818,0.783,651.07,650.33,1.34344187]
[1747787021017,0.783,651.07,650.34,0.58792587]
[1747787021215,0.783,651.07,650.35,0.58792587]
[1747787021415,0.783,651.07,650.34,1.0629628]
[1747787021416,0.783,651.07,650.36,0.58792587]
[1747787021615,0.783,651.07,650.37,1.34344187]
[1747787021919,0.783,651.07,650.38,1.34344187]
[1747787022119,0.783,651.07,650.39,0.58792587]
[1747787022320,0.783,651.07,650.4,1.34344187]
[1747787022520,0.783,651.07,650.41,0.58792587]
[1747787022720,0.783,651.07,650.42,1.34344187]
[1747787022921,0.783,651.07,650.43,0.58792587]
[1747787023122,0.783,651.07,650.44,1.34344187]
[1747787023321,0.783,651.07,650.45,0.58792587]
[1747787023522,0.783,651.07,650.46,0.58792587]
[1747787023720,0.783,651.07,650.47,0.58792587]
[1747787023917,0.783,651.07,650.4,0.3074468]
[1747787024120,0.783,651.07,650.41,0.58764824]
[1747787024321,0.783,651.07,650.42,0.58764824]
[1747787024520,0.783,651.07,650.43,0.58764824]
[1747787024720,0.783,651.07,650.44,0.58764824]
[1747787024920,0.783,651.07,650.45,0.58764824]
[1747787025122,0.783,651.07,650.46,0.58764824]
[1747787025322,0.783,651.07,650.47,0.58764824]
[1747787025523,0.783,651.07,650.22,0.25473833]
[1747787025825,0.783,651.07,650.23,0.58759672]
[1747787026121,0.783,651.07,650.24,1.3434983]
[1747787026321,0.783,651.07,650.25,1.3434983]
[1747787026527,0.783,651.07,650.26,0.58759672]
[1747787026724,0.783,651.07,650.27,1.3434983]
[1747787026926,0.783,651.07,650.28,0.58759672]
[1747787027221,0.783,651.07,650.27,0.75590158]
[1747787027222,0.783,651.07,650.29,1.3434983]
[1747787027425,0.783,651.07,650.3,0.58759672]
[1747787027627,0.783,651.07,650.31,1.3434983]
[1747787027827,0.783,651.07,650.32,0.58759672]
[1747787028028,0.783,651.07,650.33,1.3434983]
[1747787028229,0.783,651.07,650.33,0.75590158]
[1747787028429,0.783,651.07,650.34,1.34345712]
[1747787028629,0.783,651.07,650.35,0.58755554]
[1747787028830,0.783,651.07,650.36,0.58755554]
[1747787029027,0.783,651.07,650.37,0.58755554]
[1747787029227,0.783,651.07,650.38,1.34345712]
[1747787029426,0.783,651.07,650.39,0.58755554]
[1747787029633,0.783,651.07,650.4,1.34345712]
[1747787029834,0.783,651.07,650.41,1.34345712]
[1747787030030,0.783,651.07,650.42,0.58755554]
[1747787030228,0.783,651.07,650.43,0.58755554]
[1747787030534,0.783,651.07,650.44,0.58755554]
[1747787030728,0.783,651.07,650.45,0.58755554]
[1747787030932,0.783,651.07,650.46,0.58755554]
[1747787031127,0.783,651.07,650.47,0.58755554]
[1747787031328,0.783,651.07,650.23,0.25473833]
[1747787031329,0.783,651.07,650.2,0.25473833]
[1747787031528,0.783,651.07,650.21,1.34335834]
[1747787031827,0.783,651.07,650.22,0.58752325]
[1747787032029,0.783,651.07,650.23,1.34335834]
[1747787032334,0.783,651.07,650.24,1.34335834]
[1747787032534,0.783,651.07,650.25,0.58752325]
[1747787032735,0.783,651.07,650.26,0.89498975]
[1747787032931,0.783,651.07,650.27,0.58752325]
[1747787033128,0.783,651.07,650.28,0.58752325]
[1747787033327,0.783,651.07,650.29,0.58752325]
[1747787033529,0.783,651.07,650.3,1.34335834]
[1747787033734,0.783,651.07,650.31,0.58752325]
[1747787033929,0.783,651.07,650.32,1.34335834]
[1747787034132,0.783,651.07,650.33,0.58752325]
[1747787034433,0.783,651.07,650.34,1.34335834]
[1747787034633,0.783,651.07,650.35,0.58752325]
[1747787034933,0.783,651.07,650.36,0.58752325]
[1747787035131,0.783,651.07,650.37,1.34335834]
[1747787035435,0.783,651.07,650.38,0.89498975]
[1747787035634,0.783,651.07,650.39,0.58752325]
[1747787035832,0.783,651.07,650.4,1.34335834]
[1747787036030,0.783,651.07,650.41,0.58752325]
[1747787036234,0.783,651.07,650.42,0.58752325]
[1747787036434,0.783,651.07,650.43,1.34335834]
[1747787036628,0.783,651.07,650.44,0.58752325]
[1747787036832,0.783,651.07,650.45,0.58752325]
[1747787037033,0.783,651.07,650.46,0.58752325]
[1747787037233,0.783,651.07,650.47,0.58752325]
[1747787037435,0.783,651.07,650.48,0.58752325]
[1747787037736,0.783,651.07,650.49,0.58783802]
[1747787038031,2.27954512,651.23,650.5,0.58783802]
[1747787038230,2.27954512,651.23,650.51,0.58783802]
[1747787038435,2.27954512,651.23,650.52,0.58783802]
[1747787038638,2.27954512,651.23,650.53,0.58783802]
[1747787038837,2.27954512,651.23,650.36,0.944]
[1747787039031,2.27954512,651.23,650.37,1.344014]
[1747787039231,2.27954512,651.23,650.38,1.344014]
[1747787039431,2.27954512,651.23,650.39,1.344014]
[1747787039630,2.27954512,651.23,650.4,0.58785923]
[1747787039831,2.27954512,651.23,650.41,0.58785923]
[1747787040038,2.27954512,651.23,650.42,0.58785923]
[1747787040235,2.27954512,651.28,650.43,1.344014]
[1747787040432,2.27954512,651.28,650.44,0.58785923]
[1747787040634,2.27954512,651.28,650.45,1.344014]
[1747787040836,0.784,651.27,650.46,0.58785923]
[1747787041137,0.784,651.27,650.47,0.58785923]
[1747787041436,0.784,651.27,650.48,1.65145846]
[1747787041738,0.784,651.27,650.49,1.34406551]
[1747787041936,0.784,651.27,650.5,0.58791074]
[1747787042231,0.784,651.27,650.48,0.30744446]
[1747787042232,0.784,651.27,650.51,0.58791074]
[1747787042436,0.784,651.27,650.52,1.34430088]
[1747787042632,0.784,651.27,650.53,0.58791074]
[1747787042832,0.784,651.27,650.54,0.58791074]
[1747787043034,0.784,651.27,650.55,0.58791074]
[1747787043234,0.784,651.27,650.56,0.58791074]
[1747787043436,0.784,651.27,650.57,0.58806699]
[1747787043632,0.784,651.27,650.48,0.30744446]
[1747787043835,0.784,651.27,650.49,0.58804436]
[1747787044032,0.784,651.27,650.5,1.34445187]
[1747787044232,0.784,651.27,650.51,0.58804436]
[1747787044537,0.784,651.27,650.52,1.34445187]
[1747787044739,0.784,651.27,650.53,0.58804436]
[1747787045037,0.784,651.27,650.54,0.58804436]
[1747787045338,0.784,651.27,650.36,0.944]
[1747787045540,0.784,651.27,650.37,1.34502921]
[1747787045738,0.784,651.27,650.38,0.58825984]
[1747787045935,0.784,651.27,650.39,1.34502921]
[1747787046239,2.27954512,651.26,650.4,0.89576084]
[1747787046439,2.27954512,651.26,650.41,0.58825984]
[1747787046640,2.27954512,651.26,650.42,0.58825984]
[1747787046837,2.27954512,651.26,650.4,0.307501]
[1747787047035,2.27954512,651.26,650.41,0.5882787]
[1747787047237,2.27954512,651.26,650.4,0.307501]
[1747787047440,0.26741358,651.25,650.41,0.58826958]
[1747787047741,0.26741358,651.25,650.42,0.5882932]
[1747787047939,0.26741358,651.25,650.36,0.944]
[1747787048138,0.26741358,651.25,650.37,1.3472164]
[1747787048338,0.26741358,651.25,650.38,0.58829288]
[1747787048539,0.26741358,651.25,650.39,1.3472164]
[1747787048740,0.26741358,651.25,650.4,0.58829288]
[1747787048938,0.26741358,651.25,650.41,0.58829288]
[1747787049141,0.26741358,651.25,650.42,0.58829288]
[1747787049341,0.26741358,651.25,650.36,0.944]
[1747787049535,0.26741358,651.25,650.37,0.58830895]